bitfinex/quotes_SOLUSD_20260226
["timestamp","ask_amount","ask_price","bid_price","bid_amount"]
[1772095227665,0.49498061,87.718,87.684,0.47573313]
[1772095227834,0.49498061,87.709,87.671,0.47573313]
[1772095228034,0.49498061,87.709,87.681,0.47573313]
[1772095228551,0.49498061,87.718,87.69,4.07528126]
[1772095228948,0.49498061,87.718,87.69,0.47573313]
[1772095229257,0.49498061,87.718,87.681,0.47573313]
[1772095229456,0.49498061,87.716,87.69,3.59954813]
[1772095229669,0.49498061,87.716,87.687,0.47573313]
[1772095230655,0.49498061,87.716,87.68,4.07528126]
[1772095231157,0.49498061,87.716,87.681,0.47573313]
[1772095231351,0.49498061,87.709,87.681,0.47573313]
[1772095231858,0.49498061,87.707,87.681,0.47573313]
[1772095232857,0.49498061,87.707,87.67,0.2]
[1772095232858,0.49498061,87.707,87.672,0.47573313]
[1772095233936,0.49498061,87.705,87.67,3.79954813]
[1772095234140,0.49498061,87.699,87.67,3.79954813]
[1772095234341,0.49498061,87.699,87.671,11.40628029]
[1772095235036,0.49498061,87.699,87.671,11.88201342]
[1772095237843,0.49498061,87.699,87.671,11.40628029]
[1772095238545,0.49498061,87.699,87.672,0.46112476]
[1772095239147,0.46370247,87.697,87.672,0.46112476]
[1772095239577,0.46370247,87.697,87.67,0.2]
[1772095241081,0.46370247,87.695,87.67,0.2]
[1772095242777,11.4032887,87.694,87.67,0.2]
[1772095242980,0.46370247,87.693,87.67,0.2]
[1772095243274,0.46370247,87.693,87.671,0.46112476]
[1772095243471,0.46370247,87.693,87.67,0.2]
[1772095244468,0.46370247,87.693,87.671,0.46112476]
[1772095244670,0.46370247,87.704,87.671,0.46112476]
[1772095244884,0.46370247,87.704,87.68,3.59954813]
[1772095245266,0.46370247,87.702,87.671,11.86740505]
[1772095245662,0.46370247,87.702,87.672,0.46112476]
[1772095246973,0.46370247,87.702,87.673,11.40602009]
[1772095247171,0.46370247,87.702,87.673,11.86714485]
[1772095247971,0.46370247,87.702,87.675,11.4057599]
[1772095248169,0.46370247,87.702,87.67,3.79954813]
[1772095248170,0.46370247,87.7,87.67,3.79954813]
[1772095248368,0.46370247,87.7,87.671,0.46112476]
[1772095249590,0.46370247,87.7,87.67,15.20595381]
[1772095249591,0.46370247,87.7,87.681,0.46112476]
[1772095250088,0.46370247,87.7,87.68,3.59954813]
[1772095250089,0.46370247,87.71,87.675,0.46112476]
[1772095250284,0.46370247,87.716,87.691,0.46112476]
[1772095250471,0.46370247,87.716,87.69,3.59954813]
[1772095251909,0.46370247,87.714,87.685,0.46112476]
[1772095252786,0.46370247,87.714,87.686,11.40432908]
[1772095252974,0.46370247,87.714,87.687,0.46112476]
[1772095253174,0.46370247,87.714,87.686,11.40432908]
[1772095253175,0.46370247,87.72,87.691,0.46112476]
[1772095254377,0.46370247,87.718,87.691,0.46112476]
[1772095255876,0.50555503,87.716,87.691,0.46112476]
[1772095259469,0.50555503,87.714,87.675,0.46709126]
[1772095259685,0.50555503,87.714,87.67,0.2]
[1772095259686,0.50555503,87.709,87.67,3.79954813]
[1772095260393,0.50555503,87.709,87.672,0.46709126]
[1772095261175,0.50555503,87.709,87.632,91.29023906]
[1772095261176,0.50555503,87.689,87.659,0.46709126]
[1772095261375,0.50555503,87.689,87.651,0.46709126]
[1772095261591,0.50555503,87.679,87.641,0.46709126]
[1772095262890,0.50555503,87.679,87.651,0.46709126]
[1772095265175,39.91424139,87.688,87.651,0.46709126]
[1772095265176,0.50555503,87.677,87.651,0.46709126]
[1772095265372,0.50555503,87.677,87.65,3.59954813]
[1772095265970,0.50555503,87.677,87.645,0.46709126]
[1772095267599,0.50555503,87.675,87.65,3.59954813]
[1772095267901,0.50555503,87.675,87.65,4.06663939]
[1772095268398,0.50555503,87.675,87.651,0.46709126]
[1772095268598,0.50555503,87.675,87.653,0.46709126]
[1772095278089,0.50555503,87.673,87.653,0.46709126]
[1772095278585,0.50555503,87.673,87.646,0.46709126]
[1772095281193,0.50555503,87.671,87.646,0.46709126]
[1772095281711,0.50555503,87.676,87.651,0.46709126]
[1772095288544,11.4057599,87.675,87.65,3.60205072]
[1772095288829,11.4057599,87.675,87.6,3.60205072]
[1772095288830,0.49558308,87.659,87.621,0.48445948]
[1772095289200,0.49558308,87.659,87.631,0.48445948]
[1772095289406,0.49558308,87.674,87.641,0.48445948]
[1772095290028,0.49558308,87.669,87.641,0.48445948]
[1772095290206,0.49558308,87.669,87.64,3.60205072]
[1772095290410,0.49558308,87.669,87.63,3.60205072]
[1772095290605,0.49558308,87.657,87.621,0.48445948]
[1772095291507,0.49558308,87.657,87.63,3.60205072]
[1772095292323,0.49558308,87.655,87.63,4.0865102]
[1772095293240,0.49558308,87.655,87.632,0.48445948]
[1772095293407,11.40767317,87.661,87.641,0.48445948]
[1772095293733,0.49558308,87.66,87.641,0.48445948]
[1772095296422,0.47968497,87.658,87.635,0.46953225]
[1772095298732,11.40810203,87.657,87.635,0.46953225]
[1772095299029,0.47968497,87.656,87.635,0.46953225]
[1772095300724,0.47968497,87.654,87.63,3.60205072]
[1772095300927,0.47968497,87.654,87.622,0.46953225]
[1772095301128,0.47968497,87.654,87.63,3.60205072]
[1772095301810,0.47968497,87.654,87.63,4.07158297]
[1772095303016,0.47968497,87.654,87.63,3.60205072]
[1772095303327,0.47968497,87.654,87.631,0.46953225]
[1772095305246,0.47968497,87.654,87.64,3.60205072]
[1772095305527,0.47968497,87.654,87.632,0.46953225]
[1772095307721,0.47968497,87.652,87.627,0.46953225]
[1772095308330,0.47968497,87.652,87.63,4.07158297]
[1772095308514,0.47968497,87.652,87.631,0.46953225]
[1772095313243,0.47968497,87.65,87.621,0.46953225]
[1772095316749,0.47968497,87.65,87.61,0.2]
[1772095316750,0.47039595,87.648,87.61,0.2]
[1772095317047,39.93200149,87.649,87.612,0.45539186]
[1772095317048,0.47039595,87.639,87.612,0.45539186]
[1772095319950,0.47039595,87.637,87.612,0.45539186]
[1772095320947,3.60205072,87.67,87.631,0.45539186]
[1772095321749,11.40602009,87.673,87.651,0.45539186]
[1772095321953,28.51174836,87.684,87.651,0.45539186]
[1772095322743,3.60205072,87.68,87.635,0.45539186]
[1772095322927,0.47039595,87.659,87.621,0.45539186]
[1772095324539,0.47039595,87.657,87.621,0.45539186]
[1772095324856,11.40797189,87.658,87.631,0.45539186]
[1772095325332,11.40680073,87.667,87.641,0.45539186]
[1772095325650,11.87719668,87.667,87.641,0.45539186]
[1772095327949,11.40680073,87.667,87.641,0.45539186]
[1772095328156,3.60205072,87.68,87.603,3.69383402]
[1772095328157,11.87576559,87.678,87.651,0.45539186]
[1772095328333,11.40536964,87.678,87.661,0.45539186]
[1772095328533,0.47039595,87.677,87.642,0.45539186]
[1772095329253,0.47039595,87.675,87.642,0.45539186]
[1772095329845,0.47039595,87.675,87.651,0.45539186]
[1772095330255,11.40589,87.674,87.651,0.45539186]
[1772095330437,11.87628595,87.674,87.651,0.45539186]
[1772095332358,0.47039595,87.673,87.651,0.45539186]
[1772095333358,11.40615019,87.672,87.651,0.45539186]
[1772095333855,11.87654614,87.672,87.651,0.45539186]
[1772095334158,0.47039595,87.671,87.651,0.45539186]
[1772095335560,0.47039595,87.671,87.605,3.42540352]
[1772095335561,0.47039595,87.669,87.63,3.60205072]
[1772095336455,11.40667062,87.668,87.63,15.01358314]
[1772095336659,0.47039595,87.667,87.63,15.01358314]
[1772095337541,0.47039595,87.667,87.631,0.45539186]
[1772095339040,57.02094105,87.688,87.611,0.45539186]
[1772095339041,0.47039595,87.649,87.611,0.45539186]
[1772095339244,39.92425797,87.666,87.611,0.45539186]
[1772095339245,0.47039595,87.639,87.611,0.45539186]
[1772095339554,0.47039595,87.639,87.61,0.2]
[1772095340559,0.47039595,87.639,87.61,0.65539186]
[1772095340943,0.47039595,87.637,87.611,0.45539186]
[1772095343763,11.41083572,87.636,87.611,0.45539186]
[1772095343950,0.47039595,87.635,87.611,0.45539186]
[1772095344265,11.41083572,87.636,87.611,0.45539186]
[1772095344465,0.47039595,87.641,87.611,0.45539186]
[1772095345350,0.47039595,87.641,87.621,0.45539186]
[1772095346572,3.60205072,87.65,87.621,0.45539186]
[1772095346573,11.40978187,87.645,87.621,0.45539186]
[1772095346865,11.89073736,87.645,87.621,0.45539186]
[1772095348746,0.48095549,87.651,87.621,0.45539186]
[1772095349973,0.48095549,87.649,87.621,0.45539186]
[1772095350866,11.40927345,87.648,87.621,0.45539186]
[1772095351054,0.48095549,87.647,87.621,0.45539186]
[1772095353561,0.48095549,87.645,87.611,0.47343527]
[1772095354173,3.60460225,87.64,87.61,0.2]
[1772095354477,39.93336831,87.646,87.61,0.2]
[1772095354478,0.48095549,87.629,87.61,0.2]
[1772095355578,0.47057258,87.627,87.61,0.2]
[1772095355978,0.47057258,87.619,87.58,3.80460225]
[1772095356171,11.41187748,87.628,87.58,0.2]
[1772095356172,0.47057258,87.609,87.58,0.2]
[1772095357283,0.47057258,87.607,87.58,0.2]
[1772095357480,0.47057258,87.607,87.58,3.80460225]
[1772095358182,0.47057258,87.607,87.58,0.2]
[1772095358685,0.47057258,87.607,87.582,0.25457439]
[1772095359985,0.47057258,87.614,87.591,0.25453517]
[1772095360284,0.47057258,87.629,87.591,0.25453517]
[1772095362690,0.47057258,87.627,87.601,0.25442018]
[1772095362864,0.47057258,87.627,87.592,0.25442018]
[1772095363496,0.47057258,87.627,87.6,3.60460225]
[1772095363676,0.47057258,87.627,87.601,0.25438273]
[1772095367289,0.47057258,87.625,87.601,0.25438273]
[1772095369872,0.47057258,87.623,87.592,0.25416688]
[1772095374380,0.47057258,87.621,87.592,0.25416688]
[1772095375977,0.47057258,87.621,87.593,0.25393326]
[1772095377499,0.46516626,87.619,87.593,0.25393326]
[1772095377695,0.46516626,87.619,87.59,3.60460225]
[1772095377903,0.46516626,87.609,87.581,0.25386991]
[1772095378685,0.46516626,87.609,87.582,0.25383878]
[1772095378984,0.46516626,87.619,87.582,0.25383878]
[1772095379802,11.41317994,87.618,87.591,0.253808]
[1772095380180,0.46516626,87.617,87.591,0.253808]
[1772095380905,0.46516626,87.617,87.58,0.2]
[1772095380906,0.46516626,87.617,87.58,3.80460225]
[1772095381083,0.46516626,87.609,87.58,0.2]
[1772095381278,0.46516626,87.609,87.581,0.25374751]
[1772095381774,11.41448269,87.608,87.581,0.25374751]
[1772095381979,3.60460225,87.64,87.58,3.80460225]
[1772095381980,0.46516626,87.616,87.591,0.25374751]
[1772095382382,11.41311559,87.619,87.591,0.25374751]
[1772095382383,0.46516626,87.618,87.591,0.25374751]
[1772095382985,3.69383402,87.651,87.591,0.25374751]
[1772095382986,0.46516626,87.64,87.6,3.60460225]
[1772095383182,0.46516626,87.639,87.601,0.25371779]
[1772095384002,0.46516626,87.637,87.601,0.00055608]
[1772095385402,0.50100108,87.629,87.601,0.00055608]
[1772095385582,0.50100108,87.629,87.59,3.60460225]
[1772095387201,0.50100108,87.627,87.581,11.41800162]
[1772095387384,0.50100108,87.627,87.59,3.60460225]
[1772095389401,0.50100108,87.625,87.591,11.41669806]
[1772095391914,11.41239842,87.624,87.6,3.60460225]
[1772095392122,11.9133995,87.624,87.6,3.60460225]
[1772095392308,0.50100108,87.623,87.6,3.60460225]
[1772095393203,0.50100108,87.623,87.59,3.60460225]
[1772095393509,11.41239842,87.624,87.58,28.74503891]
[1772095393510,0.50100108,87.619,87.581,11.41800162]
[1772095394014,0.50100108,87.617,87.59,3.60460225]
[1772095395119,0.50100108,87.615,87.59,3.60460225]
[1772095396818,11.91388415,87.621,87.591,11.41669806]
[1772095397019,0.50100108,87.62,87.591,11.41669806]
[1772095403217,0.50100108,87.62,87.58,28.74525191]
[1772095403218,0.50100108,87.618,87.581,11.41800162]
[1772095403721,0.50100108,87.618,87.58,0.2]
[1772095403903,0.50100108,87.609,87.58,0.2]
[1772095404500,0.50100108,87.609,87.58,3.80460225]
[1772095405412,0.50100108,87.607,87.58,3.80460225]
[1772095407516,0.50100108,87.613,87.59,3.60460225]
[1772095409323,11.91418102,87.618,87.59,3.60664226]
[1772095409526,0.50100108,87.618,87.59,3.60664226]
[1772095411003,0.50100108,87.616,87.59,3.60664226]
[1772095414432,0.50100108,87.616,87.591,11.41669806]
[1772095417137,0.50100108,87.614,87.59,3.60664226]
[1772095417645,0.50100108,87.614,87.58,0.2]
[1772095417646,0.50100108,87.609,87.58,0.2]
[1772095417813,0.50100108,87.599,87.56,3.80664226]
[1772095418833,0.50100108,87.599,87.57,3.60664226]
[1772095419032,3.60664226,87.61,87.57,3.60664226]
[1772095419033,0.50100108,87.597,87.57,3.60664226]
[1772095420631,3.60664226,87.61,87.57,3.60664226]
[1772095420632,0.50100108,87.595,87.57,3.60664226]
[1772095420848,0.46327109,87.589,87.55,3.80664226]
[1772095421650,0.46327109,87.589,87.56,3.80623317]
[1772095421823,0.46327109,87.589,87.57,3.60664226]
[1772095422024,0.46327109,87.589,87.56,3.60664226]
[1772095423026,0.46327109,87.587,87.56,3.60664226]
[1772095424228,0.46327109,87.585,87.56,3.60664226]
[1772095426634,0.46327109,87.583,87.56,3.60664226]
[1772095427630,0.46327109,87.583,87.55,0.2]
[1772095427834,0.46327109,87.579,87.54,3.80664226]
[1772095428241,0.46327109,87.579,87.54,0.2]
[1772095428438,0.46327109,87.569,87.54,0.2]
[1772095428950,3.60664226,87.57,87.54,0.2]
[1772095428951,0.46327109,87.567,87.54,0.2]
[1772095429248,3.60664226,87.56,87.53,0.2]
[1772095429439,0.46327109,87.559,87.53,0.2]
[1772095429643,0.46327109,87.559,87.52,3.80664226]
[1772095430035,0.46327109,87.559,87.521,0.48837293]
[1772095430339,0.46327109,87.559,87.53,3.60664226]
[1772095431150,0.46327109,87.557,87.53,4.09501519]
[1772095432435,0.46327109,87.557,87.531,0.48837293]
[1772095433047,0.46327109,87.555,87.531,0.48837293]
[1772095434748,11.8847938,87.554,87.531,0.48837293]
[1772095435145,0.46327109,87.553,87.531,0.48837293]
[1772095437753,0.48086877,87.551,87.531,0.48837293]
[1772095439257,0.48086877,87.551,87.54,3.60664226]
[1772095439753,0.48086877,87.551,87.531,0.48837293]
[1772095440841,0.48086877,87.557,87.54,3.60664226]
[1772095441043,0.48086877,87.557,87.536,0.46939156]
[1772095441239,0.48086877,87.557,87.531,0.46939156]
[1772095443349,0.48086877,87.555,87.531,0.46939156]
[1772095443754,0.48086877,87.555,87.53,3.60664226]
[1772095443945,0.48086877,87.555,87.526,0.46939156]
[1772095444262,0.48086877,87.555,87.53,3.60664226]
[1772095444444,0.48086877,87.555,87.53,4.07603382]
[1772095445042,0.48086877,87.555,87.531,0.46939156]
[1772095445563,0.48086877,87.553,87.531,0.46939156]
[1772095448161,0.48086877,87.551,87.531,0.46939156]
[1772095448554,0.48086877,87.551,87.52,3.80664226]
[1772095448768,39.97624268,87.552,87.48,0.2]
[1772095448769,0.48086877,87.539,87.48,0.2]
[1772095448967,85.66337718,87.552,87.484,0.46939156]
[1772095448968,0.48086877,87.519,87.484,0.46939156]
[1772095450265,0.48086877,87.517,87.489,0.46939156]
[1772095450473,0.48086877,87.517,87.484,0.46939156]
[1772095450852,0.48086877,87.517,87.5,3.60664226]
[1772095451073,0.48086877,87.517,87.5,4.07603382]
[1772095453167,0.48086877,87.517,87.5,0.46939156]
[1772095453860,0.48086877,87.517,87.491,0.46939156]
[1772095454063,0.48086877,87.515,87.491,0.46939156]
[1772095455778,0.48086877,87.515,87.49,0.2]
[1772095457173,0.48086877,87.513,87.49,3.80664226]
[1772095458177,0.48086877,87.513,87.491,0.46939156]
[1772095458572,11.90704141,87.519,87.5,3.60664226]
[1772095458760,11.90704141,87.519,87.501,0.46939156]
[1772095459067,0.48086877,87.518,87.501,0.46939156]
[1772095459272,11.42635145,87.517,87.501,0.46939156]
[1772095459455,0.48086877,87.518,87.501,0.46939156]
[1772095459857,11.42635145,87.517,87.501,0.46939156]
[1772095460373,11.42581927,87.522,87.501,0.46939156]
[1772095460576,0.48086877,87.538,87.511,0.46939156]
[1772095461487,0.48086877,87.536,87.511,0.46939156]
[1772095461768,0.48086877,87.536,87.52,4.07603382]
[1772095461970,11.42374081,87.537,87.521,0.46939156]
[1772095462162,11.42317563,87.542,87.521,0.46939156]
[1772095462481,0.48086877,87.541,87.521,0.46939156]
[1772095463473,11.42334932,87.54,87.521,0.46939156]
[1772095464175,11.42282251,87.545,87.521,0.46939156]
[1772095464351,11.42282251,87.545,87.531,0.46939156]
[1772095464753,11.42282251,87.545,87.521,0.46939156]
[1772095464965,11.90369128,87.545,87.521,0.46939156]
[1772095465369,0.48086877,87.552,87.521,0.46939156]
[1772095465576,39.97304673,87.559,87.531,0.46939156]
[1772095465756,0.48086877,87.558,87.531,0.46939156]
[1772095467396,0.49138431,87.556,87.531,0.46939156]
[1772095467894,11.42113137,87.557,87.531,0.46939156]
[1772095468399,0.49138431,87.556,87.531,0.46939156]
[1772095469466,0.49138431,87.554,87.531,0.46939156]
[1772095471367,11.42165317,87.553,87.531,0.46939156]
[1772095471567,0.49138431,87.558,87.531,0.46939156]
[1772095471867,0.49138431,87.557,87.531,0.46939156]
[1772095473591,11.42126182,87.556,87.541,0.4855214]
[1772095473883,11.42072985,87.561,87.541,0.4855214]
[1772095474082,11.91211416,87.561,87.541,0.4855214]
[1772095474274,11.42072985,87.561,87.541,0.4855214]
[1772095475791,0.45183682,87.56,87.541,0.4855214]
[1772095475992,0.45183682,87.56,87.464,49.15837506]
[1772095475993,0.45183682,87.56,87.531,0.47702684]
[1772095477271,0.45183682,87.558,87.531,0.47702684]
[1772095479092,11.42087049,87.559,87.541,0.47702684]
[1772095480089,0.45183682,87.559,87.541,0.47702684]
[1772095481181,0.45183682,87.559,87.531,0.47702684]
[1772095481376,11.42034877,87.563,87.541,0.47702684]
[1772095481678,11.87218559,87.563,87.541,0.47702684]
[1772095482589,0.45183682,87.562,87.541,0.47702684]
[1772095483785,0.45183682,87.572,87.541,0.47702684]
[1772095484893,0.45183682,87.569,87.541,0.47702684]
[1772095485100,0.45183682,87.569,87.53,4.08928583]
[1772095485799,0.45183682,87.559,87.53,0.47702684]
[1772095486699,0.45183682,87.559,87.53,4.08928583]
[1772095486895,11.42100093,87.558,87.531,0.47702684]
[1772095487091,0.45183682,87.557,87.531,0.47702684]
[1772095488189,0.45183682,87.557,87.5,3.42540352]
[1772095488190,0.45183682,87.557,87.501,11.71276395]
[1772095488398,0.45183682,87.557,87.53,3.61225899]
[1772095490103,0.45183682,87.555,87.53,3.61225899]
[1772095490304,0.45183682,87.555,87.531,0.47702684]
[1772095491793,0.45183682,87.572,87.541,0.47702684]
[1772095491993,0.45183682,87.589,87.551,0.47702684]
[1772095492206,0.45183682,87.588,87.551,0.47702684]
[1772095493888,11.41721945,87.587,87.571,0.47702684]
[1772095494295,0.45183682,87.59,87.571,0.47702684]
[1772095494486,0.45183682,87.599,87.58,3.61225899]
[1772095494689,0.45183682,87.599,87.577,0.47702684]
[1772095496185,3.61225899,87.61,87.57,3.61225899]
[1772095496186,0.4718696,87.597,87.57,3.61225899]
[1772095498310,0.4718696,87.595,87.57,3.61225899]
[1772095498698,0.4718696,87.595,87.568,0.16270598]
[1772095498903,0.4718696,87.595,87.56,3.61225899]
[1772095498904,11.41604639,87.596,87.58,3.61225899]
[1772095499114,11.88791599,87.596,87.578,0.16270598]
[1772095499417,11.88791599,87.596,87.57,3.61225899]
[1772095499418,0.4718696,87.595,87.571,0.16548094]
[1772095500211,11.41604639,87.596,87.571,0.16548094]
[1772095500498,45.73648277,87.65,87.591,0.16822404]
[1772095500499,11.41474328,87.606,87.591,0.16822404]
[1772095500692,11.41405106,87.612,87.591,0.16822404]
[1772095500929,0.4718696,87.611,87.59,3.61225899]
[1772095501225,0.4718696,87.599,87.561,0.17093563]
[1772095501407,0.4718696,87.599,87.57,3.61225899]
[1772095502501,0.4718696,87.597,87.57,3.61225899]
[1772095502994,0.4718696,87.597,87.571,0.17506481]
[1772095503198,0.4718696,87.597,87.58,3.61225899]
[1772095503495,11.41578574,87.598,87.58,3.61225899]
[1772095503496,0.4718696,87.603,87.58,3.61225899]
[1772095503692,0.4718696,87.603,87.581,0.17914657]
[1772095504520,11.41526449,87.602,87.59,3.61225899]
[1772095505221,0.4718696,87.629,87.591,0.18318144]
[1772095506019,0.4718696,87.629,87.6,3.61225899]
[1772095506020,28.5314553,87.623,87.6,3.61225899]
[1772095506212,0.4718696,87.622,87.6,3.61225899]
[1772095506413,0.4718696,87.622,87.59,3.61225899]
[1772095506715,0.4718696,87.62,87.59,3.61225899]
[1772095508024,0.4718696,87.618,87.59,3.61225899]
[1772095508704,39.94567388,87.619,87.57,3.61225899]
[1772095508705,0.4718696,87.609,87.57,3.61225899]
[1772095508899,0.4718696,87.599,87.563,0.19886279]
[1772095510022,0.4718696,87.597,87.563,0.19886279]
[1772095510219,0.4718696,87.589,87.55,3.61225899]
[1772095510427,0.4718696,87.579,87.541,0.20643587]
[1772095510812,0.4718696,87.569,87.531,0.20643587]
[1772095511519,0.4718696,87.559,87.52,3.61225899]
[1772095511705,0.4718696,87.559,87.521,0.2101573]
[1772095511906,11.42100093,87.558,87.521,0.2101573]
[1772095512209,0.4718696,87.557,87.53,3.61225899]
[1772095512521,0.4718696,87.557,87.521,0.2101573]
[1772095513810,0.4718696,87.557,87.52,3.61225899]
[1772095514016,0.4718696,87.555,87.52,3.61225899]
[1772095516219,39.9753295,87.554,87.52,3.61225899]
[1772095516405,39.9753295,87.554,87.492,3.69383402]
[1772095516406,0.4718696,87.549,87.51,3.61225899]
[1772095517227,0.4718696,87.549,87.508,0.22813302]
[1772095517408,0.4718696,87.549,87.52,3.61225899]
[1772095517607,0.4718696,87.549,87.51,3.61225899]
[1772095517824,0.4718696,87.539,87.511,0.23160524]
[1772095518028,0.4718696,87.549,87.521,0.23160524]
[1772095518322,11.42230547,87.548,87.521,0.23160524]
[1772095519129,11.89417507,87.548,87.521,0.23160524]
[1772095519927,0.4718696,87.547,87.52,3.61225899]
[1772095520124,0.4718696,87.547,87.513,0.23843048]
[1772095520330,0.4718696,87.547,87.51,3.61225899]
[1772095520521,0.4718696,87.539,87.5,3.61225899]
[1772095520829,0.4718696,87.539,87.501,0.24178442]
[1772095521221,0.4718696,87.539,87.5,3.61225899]
[1772095522032,0.4718696,87.537,87.5,3.61225899]
[1772095523125,0.4718696,87.535,87.5,3.86063616]
[1772095523319,0.4718696,87.535,87.51,3.61225899]
[1772095523519,0.4718696,87.535,87.5,3.61225899]
[1772095524419,0.4718696,87.535,87.501,0.25481935]
[1772095525130,11.42491545,87.528,87.494,0.25481935]
[1772095525329,0.4718696,87.527,87.494,0.25481935]
[1772095526438,0.4718696,87.527,87.5,3.61225899]
[1772095526642,0.4718696,87.527,87.494,0.25481935]
[1772095528816,11.42517651,87.526,87.5,3.61225899]
[1772095529034,0.55479477,87.525,87.5,3.61225899]
[1772095529544,0.55479477,87.525,87.491,0.2732764]
[1772095530736,0.55479477,87.519,87.48,0.2]
[1772095530933,0.55479477,87.509,87.48,0.2]
[1772095531135,0.55479477,87.509,87.48,3.81225899]
[1772095531316,0.55479477,87.509,87.48,3.81624439]
[1772095531516,0.55479477,87.509,87.48,0.2]
[1772095531918,0.55479477,87.509,87.481,0.27914988]
[1772095532732,0.55479477,87.507,87.481,0.27914988]
[1772095534731,0.55479477,87.505,87.48,0.2]
[1772095536647,0.55964869,87.497,87.48,1e-08]
[1772095536950,3.61624439,87.52,87.48,1e-08]
[1772095536951,11.98794619,87.503,87.48,0.2959776]
[1772095537140,11.98794619,87.503,87.481,0.29597759]
[1772095537334,0.55964869,87.519,87.491,0.29867054]
[1772095537537,0.55964869,87.531,87.501,0.29867054]
[1772095537733,0.55964869,87.531,87.51,3.91491493]
[1772095538041,0.55964869,87.531,87.51,0.29867054]
[1772095538237,0.55964869,87.548,87.511,0.29867054]
[1772095538820,11.42243594,87.547,87.521,0.30133256]
[1772095539043,0.55964869,87.568,87.531,0.30133256]
[1772095539335,0.55964869,87.568,87.541,0.30396401]
[1772095540139,0.55964869,87.568,87.531,0.30396401]
[1772095541744,0.55964869,87.566,87.531,0.30396401]
[1772095544652,0.55964869,87.564,87.533,0.31667477]
[1772095544836,11.42008793,87.565,87.541,0.31667477]
[1772095545428,11.41813199,87.58,87.551,0.31912999]
[1772095545732,0.55964869,87.579,87.551,0.31912999]
[1772095547148,0.55964869,87.577,87.54,3.61624439]
[1772095547451,0.55964869,87.577,87.54,3.94020056]
[1772095547633,0.55964869,87.577,87.55,3.61624439]
[1772095548031,0.55964869,87.577,87.549,0.32395617]
[1772095548231,0.55964869,87.577,87.542,0.32632777]
[1772095548640,0.55964869,87.577,87.55,3.61624439]
[1772095548951,0.55964869,87.577,87.545,0.32632777]
[1772095549152,0.55964869,87.588,87.561,0.32632777]
[1772095549336,0.55964869,87.588,87.545,11.42257359]
[1772095549337,0.55964869,87.609,87.571,0.32867212]
[1772095549532,0.55964869,87.608,87.581,0.32867212]
[1772095551236,11.41461298,87.607,87.581,0.32867212]
[1772095551639,0.55964869,87.606,87.581,0.32867212]
[1772095553137,11.41396384,87.612,87.581,0.32867212]
[1772095553355,11.41396384,87.612,87.566,28.54980533]
[1772095553356,11.41396384,87.612,87.591,0.33778334]
[1772095555046,0.55964869,87.611,87.584,0.33999611]
[1772095555638,11.41422212,87.61,87.584,0.33999611]
[1772095557437,11.41361174,87.615,87.591,0.34859596]
[1772095557862,0.57860231,87.614,87.591,0.34859596]
[1772095558752,11.41383128,87.613,87.591,0.34859596]
[1772095560643,0.57860231,87.613,87.591,0.34859596]
[1772095561358,11.41304968,87.619,87.591,0.34859596]
[1772095561359,0.57860231,87.618,87.591,0.34859596]
[1772095562355,0.57860231,87.618,87.58,3.61624439]
[1772095562561,0.57860231,87.618,87.581,0.35880171]
[1772095563558,0.57860231,87.616,87.581,0.35880171]
[1772095565741,0.57860231,87.614,87.59,3.61624439]
[1772095565943,0.57860231,87.614,87.583,0.36464812]
[1772095568556,104.1,87.639,87.601,0.37029538]
[1772095568557,11.41174725,87.629,87.601,0.37029538]
[1772095568757,0.57860231,87.628,87.601,0.37029538]
[1772095571361,0.57860231,87.626,87.601,0.37029538]
[1772095572848,0.57860231,87.643,87.611,0.37752695]
[1772095573069,0.57860231,87.648,87.611,0.37752695]
[1772095573446,0.57860231,87.646,87.611,0.37752695]
[1772095573966,0.57860231,87.629,87.593,0.37928324]
[1772095574144,0.57860231,87.619,87.581,0.37928324]
[1772095575949,0.57860231,87.617,87.581,0.37928324]
[1772095577971,0.57860231,87.615,87.581,0.37928324]
[1772095579248,11.413701,87.614,87.581,0.37928324]
[1772095579453,11.99230331,87.614,87.581,0.37928324]
[1772095580673,11.99230331,87.614,87.59,4.00726955]
[1772095581373,11.99230331,87.614,87.591,0.39102516]
[1772095581771,0.57860231,87.613,87.584,0.3926264]
[1772095582570,0.57860231,87.613,87.59,3.61624439]
[1772095584177,0.57860231,87.611,87.59,3.61624439]
[1772095584374,0.57860231,87.611,87.581,0.39732061]
[1772095584676,0.57860231,87.609,87.57,4.013565]
[1772095585280,0.57860231,87.589,87.552,0.39732061]
[1772095586479,11.41708909,87.588,87.552,0.39732061]
[1772095586778,0.57849129,87.587,87.56,3.61624439]
[1772095586981,0.57849129,87.587,87.561,0.40185493]
[1772095587279,0.57849129,87.587,87.554,0.40185493]
[1772095587584,0.57849129,87.587,87.561,0.40333178]
[1772095587876,0.57849129,87.593,87.57,3.61624439]
[1772095588063,0.57849129,87.591,87.57,3.61624439]
[1772095588373,0.57849129,87.591,87.561,0.40479166]
[1772095588580,0.57849129,87.591,87.56,3.61624439]
[1772095588773,0.57849129,87.589,87.56,3.61624439]